Workbook

Sheet Dasbor
N1: =BudgetName&" INTERAKTIF ANGGARAN" -> KELUARGA JOHNSON 2012 INTERAKTIF ANGGARAN
A3: ='data bagan'!C38 -> Rp4,000
D5: penghasilan
A7: ='data bagan'!C39 -> Rp5,933
D9: pengeluaran
A11: ='data bagan'!D40&"Rp"&'data bagan'!C40 -> -Rp1933
D13: alur kas

Sheet Anggaran
C1: jan | D1: feb | E1: mar | F1: apr | G1: mei | H1: jun | I1: jul | J1: agu | K1: sep | L1: okt | M1: nov | N1: des | O1: tahun | P1: Rata-rata
B5: Saldo Awal | C5: 1000
B6: TOTAL PENGHASILAN | C6: =SUM(tblIncome[jan]) -> 4222 | D6: =SUM(tblIncome[feb]) -> 9033 | E6: =SUM(tblIncome[mar]) -> 4000 | F6: =SUM(tblIncome[apr]) -> 4045 | G6: =SUM(tblIncome[may]) -> 9000 | H6: =SUM(tblIncome[jun]) -> 1525 | I6: =SUM(tblIncome[jul]) -> 1500 | J6: =SUM(tblIncome[aug]) -> 6500 | K6: =SUM(tblIncome[sep]) -> 4000 | L6: =SUM(tblIncome[oct]) -> 4000 | M6: =SUM(tblIncome[nov]) -> 9000 | N6: =SUM(tblIncome[dec]) -> 4000 | O6: =SUM(tblIncome[year]) -> 60825 | P6: =O6/12 -> 5069
B7: Total Pengeluaran | C7: =SUM(tblExpenseCategory_01[jan],tblExpenseCategory_02[jan],tblExpenseCategory_03[jan],tblExpenseCategory_04[jan],tblExpenseCategory_05[jan],tblExpenseCategory_06[jan],tblExpenseCategory_07[jan],tblExpenseCategory_08[jan],tblExpenseCategory_09[jan],tblExpenseCategory_10[jan],tblExpenseCategory_11[jan],tblExpenseCategory_12[jan],tblExpenseCategory_13[jan],tblExpenseCategory_14[jan],tblExpenseCategory_15[jan]) -> 7936 | D7: =SUM(tblExpenseCategory_01[feb],tblExpenseCategory_02[feb],tblExpenseCategory_03[feb],tblExpenseCategory_04[feb],tblExpenseCategory_05[feb],tblExpenseCategory_06[feb],tblExpenseCategory_07[feb],tblExpenseCategory_08[feb],tblExpenseCategory_09[feb],tblExpenseCategory_10[feb],tblExpenseCategory_11[feb],tblExpenseCategory_12[feb],tblExpenseCategory_13[feb],tblExpenseCategory_14[feb],tblExpenseCategory_15[feb]) -> 5243 | E7: =SUM(tblExpenseCategory_01[mar],tblExpenseCategory_02[mar],tblExpenseCategory_03[mar],tblExpenseCategory_04[mar],tblExpenseCategory_05[mar],tblExpenseCategory_06[mar],tblExpenseCategory_07[mar],tblExpenseCategory_08[mar],tblExpenseCategory_09[mar],tblExpenseCategory_10[mar],tblExpenseCategory_11[mar],tblExpenseCategory_12[mar],tblExpenseCategory_13[mar],tblExpenseCategory_14[mar],tblExpenseCategory_15[mar]) -> 5933 | F7: =SUM(tblExpenseCategory_01[apr],tblExpenseCategory_02[apr],tblExpenseCategory_03[apr],tblExpenseCategory_04[apr],tblExpenseCategory_05[apr],tblExpenseCategory_06[apr],tblExpenseCategory_07[apr],tblExpenseCategory_08[apr],tblExpenseCategory_09[apr],tblExpenseCategory_10[apr],tblExpenseCategory_11[apr],tblExpenseCategory_12[apr],tblExpenseCategory_13[apr],tblExpenseCategory_14[apr],tblExpenseCategory_15[apr]) -> 5858 | G7: =SUM(tblExpenseCategory_01[may],tblExpenseCategory_02[may],tblExpenseCategory_03[may],tblExpenseCategory_04[may],tblExpenseCategory_05[may],tblExpenseCategory_06[may],tblExpenseCategory_07[may],tblExpenseCategory_08[may],tblExpenseCategory_09[may],tblExpenseCategory_10[may],tblExpenseCategory_11[may],tblExpenseCategory_12[may],tblExpenseCategory_13[may],tblExpenseCategory_14[may],tblExpenseCategory_15[may]) -> 5468 | H7: =SUM(tblExpenseCategory_01[jun],tblExpenseCategory_02[jun],tblExpenseCategory_03[jun],tblExpenseCategory_04[jun],tblExpenseCategory_05[jun],tblExpenseCategory_06[jun],tblExpenseCategory_07[jun],tblExpenseCategory_08[jun],tblExpenseCategory_09[jun],tblExpenseCategory_10[jun],tblExpenseCategory_11[jun],tblExpenseCategory_12[jun],tblExpenseCategory_13[jun],tblExpenseCategory_14[jun],tblExpenseCategory_15[jun]) -> 5118 | I7: =SUM(tblExpenseCategory_01[jul],tblExpenseCategory_02[jul],tblExpenseCategory_03[jul],tblExpenseCategory_04[jul],tblExpenseCategory_05[jul],tblExpenseCategory_06[jul],tblExpenseCategory_07[jul],tblExpenseCategory_08[jul],tblExpenseCategory_09[jul],tblExpenseCategory_10[jul],tblExpenseCategory_11[jul],tblExpenseCategory_12[jul],tblExpenseCategory_13[jul],tblExpenseCategory_14[jul],tblExpenseCategory_15[jul]) -> 5743 | J7: =SUM(tblExpenseCategory_01[aug],tblExpenseCategory_02[aug],tblExpenseCategory_03[aug],tblExpenseCategory_04[aug],tblExpenseCategory_05[aug],tblExpenseCategory_06[aug],tblExpenseCategory_07[aug],tblExpenseCategory_08[aug],tblExpenseCategory_09[aug],tblExpenseCategory_10[aug],tblExpenseCategory_11[aug],tblExpenseCategory_12[aug],tblExpenseCategory_13[aug],tblExpenseCategory_14[aug],tblExpenseCategory_15[aug]) -> 5353 | K7: =SUM(tblExpenseCategory_01[sep],tblExpenseCategory_02[sep],tblExpenseCategory_03[sep],tblExpenseCategory_04[sep],tblExpenseCategory_05[sep],tblExpenseCategory_06[sep],tblExpenseCategory_07[sep],tblExpenseCategory_08[sep],tblExpenseCategory_09[sep],tblExpenseCategory_10[sep],tblExpenseCategory_11[sep],tblExpenseCategory_12[sep],tblExpenseCategory_13[sep],tblExpenseCategory_14[sep],tblExpenseCategory_15[sep]) -> 5983 | L7: =SUM(tblExpenseCategory_01[oct],tblExpenseCategory_02[oct],tblExpenseCategory_03[oct],tblExpenseCategory_04[oct],tblExpenseCategory_05[oct],tblExpenseCategory_06[oct],tblExpenseCategory_07[oct],tblExpenseCategory_08[oct],tblExpenseCategory_09[oct],tblExpenseCategory_10[oct],tblExpenseCategory_11[oct],tblExpenseCategory_12[oct],tblExpenseCategory_13[oct],tblExpenseCategory_14[oct],tblExpenseCategory_15[oct]) -> 5943 | M7: =SUM(tblExpenseCategory_01[nov],tblExpenseCategory_02[nov],tblExpenseCategory_03[nov],tblExpenseCategory_04[nov],tblExpenseCategory_05[nov],tblExpenseCategory_06[nov],tblExpenseCategory_07[nov],tblExpenseCategory_08[nov],tblExpenseCategory_09[nov],tblExpenseCategory_10[nov],tblExpenseCategory_11[nov],tblExpenseCategory_12[nov],tblExpenseCategory_13[nov],tblExpenseCategory_14[nov],tblExpenseCategory_15[nov]) -> 5058 | N7: =SUM(tblExpenseCategory_01[dec],tblExpenseCategory_02[dec],tblExpenseCategory_03[dec],tblExpenseCategory_04[dec],tblExpenseCategory_05[dec],tblExpenseCategory_06[dec],tblExpenseCategory_07[dec],tblExpenseCategory_08[dec],tblExpenseCategory_09[dec],tblExpenseCategory_10[dec],tblExpenseCategory_11[dec],tblExpenseCategory_12[dec],tblExpenseCategory_13[dec],tblExpenseCategory_14[dec],tblExpenseCategory_15[dec]) -> 4958 | O7: =SUM(tblExpenseCategory_01[year],tblExpenseCategory_02[year],tblExpenseCategory_03[year],tblExpenseCategory_04[year],tblExpenseCategory_05[year],tblExpenseCategory_06[year],tblExpenseCategory_07[year],tblExpenseCategory_08[year],tblExpenseCategory_09[year],tblExpenseCategory_10[year],tblExpenseCategory_11[year],tblExpenseCategory_12[year],tblExpenseCategory_13[year],tblExpenseCategory_14[year],tblExpenseCategory_15[year]) -> 68594 | P7: =O7/12 -> 5716
B8: Penghasilan Bersih | C8: =C6-C7 -> -3714 | D8: =D6-D7 -> 3790 | E8: -1933 | F8: -1813 | G8: 3532 | H8: -3593 | I8: -4243 | J8: 1147 | K8: -1983 | L8: -1943 | M8: 3942 | N8: -958 | O8: -7769 | P8: =O8/12 -> -647
B9: TOTAL ARUS KAS | C9: =C5+C6-C7 -> -2714 | D9: =C9+D6-D7 -> 1076 | E9: =D9+E6-E7 -> -857 | F9: -2670 | G9: 862 | H9: -2731 | I9: -6974 | J9: -5827 | K9: -7810 | L9: -9753 | M9: -5811 | N9: -6769
B12: penghasilan
B13: Gaji & Tips | C13: 4000 | D13: 4000 | E13: 4000 | F13: 4000 | G13: 4000 | H13: 1000 | I13: 1000 | J13: 1000 | K13: 4000 | L13: 4000 | M13: 4000 | N13: 4000 | O13: =SUM(tblIncome[[#This Row],[jan]:[dec]]) -> 39000 | P13: =tblIncome[[#This Row],[year]]/12 -> 3250
B14: Pendapatan bunga | C14: 222 | D14: 33 | F14: 45 | H14: 25 | O14: =SUM(tblIncome[[#This Row],[jan]:[dec]]) -> 325 | P14: =tblIncome[[#This Row],[year]]/12 -> 27
B15: Dividen | D15: 5000 | G15: 5000 | J15: 5000 | M15: 5000 | O15: =SUM(tblIncome[[#This Row],[jan]:[dec]]) -> 20000 | P15: =tblIncome[[#This Row],[year]]/12 -> 1667
B16: pengembalian uang/penggantian | H16: 500 | I16: 500 | J16: 500 | O16: =SUM(tblIncome[[#This Row],[jan]:[dec]]) -> 1500 | P16: =tblIncome[[#This Row],[year]]/12 -> 125
B17: Lainnya | O17: =SUM(tblIncome[[#This Row],[jan]:[dec]]) -> 0 | P17: =tblIncome[[#This Row],[year]]/12 -> 0
B18: =UPPER("Total " & B12) -> TOTAL PENGHASILAN | C18: =SUM(tblIncome[jan]) -> 4222 | D18: =SUM(tblIncome[feb]) -> 9033 | E18: =SUM(tblIncome[mar]) -> 4000 | F18: =SUM(tblIncome[apr]) -> 4045 | G18: =SUM(tblIncome[may]) -> 9000 | H18: =SUM(tblIncome[jun]) -> 1525 | I18: =SUM(tblIncome[jul]) -> 1500 | J18: =SUM(tblIncome[aug]) -> 6500 | K18: =SUM(tblIncome[sep]) -> 4000 | L18: =SUM(tblIncome[oct]) -> 4000 | M18: =SUM(tblIncome[nov]) -> 9000 | N18: =SUM(tblIncome[dec]) -> 4000 | O18: =SUM(tblIncome[year]) -> 60825 | P18: =tblIncome[[#Totals],[year]]/12 -> 5069
B21: rumah
B22: Hipotek/Sewa | C22: 850 | D22: 850 | E22: 850 | F22: 850 | G22: 850 | H22: 850 | I22: 850 | J22: 850 | K22: 850 | L22: 850 | M22: 900 | N22: 900 | O22: =SUM(tblExpenseCategory_01[[#This Row],[jan]:[dec]]) -> 10300 | P22: =tblExpenseCategory_01[[#This Row],[year]]/12 -> 858
B23: Listrik | C23: 200 | D23: 200 | E23: 175 | F23: 150 | G23: 150 | H23: 175 | I23: 225 | J23: 275 | K23: 200 | L23: 150 | M23: 150 | N23: 150 | O23: =SUM(tblExpenseCategory_01[[#This Row],[jan]:[dec]]) -> 2200 | P23: =tblExpenseCategory_01[[#This Row],[year]]/12 -> 183
B24: Telepon | C24: 50 | D24: 50 | E24: 100 | F24: 100 | G24: 50 | H24: 50 | I24: 100 | J24: 100 | K24: 50 | L24: 50 | M24: 50 | N24: 50 | O24: =SUM(tblExpenseCategory_01[[#This Row],[jan]:[dec]]) -> 800 | P24: =tblExpenseCategory_01[[#This Row],[year]]/12 -> 67
B25: TV Kabel/Satelit | C25: 69 | D25: 69 | E25: 69 | F25: 69 | G25: 69 | H25: 69 | I25: 69 | J25: 69 | K25: 69 | L25: 69 | M25: 69 | N25: 69 | O25: =SUM(tblExpenseCategory_01[[#This Row],[jan]:[dec]]) -> 828 | P25: =tblExpenseCategory_01[[#This Row],[year]]/12 -> 69
B26: Internet | C26: 39 | D26: 39 | E26: 39 | F26: 39 | G26: 39 | H26: 39 | I26: 39 | J26: 39 | K26: 39 | L26: 39 | M26: 39 | N26: 39 | O26: =SUM(tblExpenseCategory_01[[#This Row],[jan]:[dec]]) -> 468 | P26: =tblExpenseCategory_01[[#This Row],[year]]/12 -> 39
B27: =UPPER("Total " & B21) -> TOTAL RUMAH | C27: =SUM(tblExpenseCategory_01[jan]) -> 1208 | D27: =SUM(tblExpenseCategory_01[feb]) -> 1208 | E27: =SUM(tblExpenseCategory_01[mar]) -> 1233 | F27: =SUM(tblExpenseCategory_01[apr]) -> 1208 | G27: =SUM(tblExpenseCategory_01[may]) -> 1158 | H27: =SUM(tblExpenseCategory_01[jun]) -> 1183 | I27: =SUM(tblExpenseCategory_01[jul]) -> 1283 | J27: =SUM(tblExpenseCategory_01[aug]) -> 1333 | K27: =SUM(tblExpenseCategory_01[sep]) -> 1208 | L27: =SUM(tblExpenseCategory_01[oct]) -> 1158 | M27: =SUM(tblExpenseCategory_01[nov]) -> 1208 | N27: =SUM(tblExpenseCategory_01[dec]) -> 1208 | O27: =SUM(tblExpenseCategory_01[year]) -> 14596 | P27: =tblExpenseCategory_01[[#Totals],[year]]/12 -> 1216
B30: kehidupan sehari-hari
B31: Bahan Makanan | C31: 345 | D31: 250 | E31: 200 | F31: 400 | G31: 350 | H31: 250 | I31: 400 | J31: 350 | K31: 250 | L31: 400 | M31: 350 | N31: 250 | O31: =SUM(tblExpenseCategory_02[[#This Row],[jan]:[dec]]) -> 3795 | P31: =tblExpenseCategory_02[[#This Row],[year]]/12 -> 316
B32: Pakaian | C32: 300 | F32: 300 | I32: 300 | L32: 300 | O32: =SUM(tblExpenseCategory_02[[#This Row],[jan]:[dec]]) -> 1200 | P32: =tblExpenseCategory_02[[#This Row],[year]]/12 -> 100
B33: Makan/Makan di luar | C33: 125 | D33: 125 | E33: 300 | F33: 125 | G33: 125 | H33: 200 | I33: 125 | J33: 125 | K33: 125 | L33: 125 | M33: 125 | N33: 125 | O33: =SUM(tblExpenseCategory_02[[#This Row],[jan]:[dec]]) -> 1750 | P33: =tblExpenseCategory_02[[#This Row],[year]]/12 -> 146
B34: Salon/Tukang Cukur | C34: 25 | E34: 50 | G34: 25 | I34: 50 | K34: 25 | M34: 100 | O34: =SUM(tblExpenseCategory_02[[#This Row],[jan]:[dec]]) -> 275 | P34: =tblExpenseCategory_02[[#This Row],[year]]/12 -> 23
B35: Lainnya | O35: =SUM(tblExpenseCategory_02[[#This Row],[jan]:[dec]]) -> 0 | P35: =tblExpenseCategory_02[[#This Row],[year]]/12 -> 0
B36: =UPPER("Total " & B30) -> TOTAL KEHIDUPAN SEHARI-HARI | C36: =SUM(tblExpenseCategory_02[jan]) -> 795 | D36: =SUM(tblExpenseCategory_02[feb]) -> 375 | E36: =SUM(tblExpenseCategory_02[mar]) -> 550 | F36: =SUM(tblExpenseCategory_02[apr]) -> 825 | G36: =SUM(tblExpenseCategory_02[may]) -> 500 | H36: =SUM(tblExpenseCategory_02[jun]) -> 450 | I36: =SUM(tblExpenseCategory_02[jul]) -> 875 | J36: =SUM(tblExpenseCategory_02[aug]) -> 475 | K36: =SUM(tblExpenseCategory_02[sep]) -> 400 | L36: =SUM(tblExpenseCategory_02[oct]) -> 825 | M36: =SUM(tblExpenseCategory_02[nov]) -> 575 | N36: =SUM(tblExpenseCategory_02[dec]) -> 375 | O36: =SUM(tblExpenseCategory_02[year]) -> 7020 | P36: =tblExpenseCategory_02[[#Totals],[year]]/12 -> 585
B39: anak-anak
B40: Perbekalan Sekolah | C40: 123 | E40: 100 | J40: 345 | O40: =SUM(tblExpenseCategory_03[[#This Row],[jan]:[dec]]) -> 568 | P40: =tblExpenseCategory_03[[#This Row],[year]]/12 -> 47
B41: Pakaian | D41: 100 | G41: 100 | K41: 100 | N41: 100 | O41: =SUM(tblExpenseCategory_03[[#This Row],[jan]:[dec]]) -> 400 | P41: =tblExpenseCategory_03[[#This Row],[year]]/12 -> 33
B42: Makan Siang Sekolah | C42: 50 | D42: 50 | E42: 50 | F42: 50 | G42: 50 | H42: 50 | K42: 50 | L42: 50 | M42: 50 | N42: 50 | O42: =SUM(tblExpenseCategory_03[[#This Row],[jan]:[dec]]) -> 500 | P42: =tblExpenseCategory_03[[#This Row],[year]]/12 -> 42
B43: Pengobatan | C43: 200 | D43: 200 | E43: 200 | F43: 200 | G43: 200 | H43: 200 | I43: 200 | J43: 200 | K43: 200 | L43: 200 | M43: 200 | N43: 200 | O43: =SUM(tblExpenseCategory_03[[#This Row],[jan]:[dec]]) -> 2400 | P43: =tblExpenseCategory_03[[#This Row],[year]]/12 -> 200
B44: Lainnya | C44: 2000 | D44: 150 | H44: 200 | L44: 100 | O44: =SUM(tblExpenseCategory_03[[#This Row],[jan]:[dec]]) -> 2450 | P44: =tblExpenseCategory_03[[#This Row],[year]]/12 -> 204
B45: =UPPER("Total " & B39) -> TOTAL ANAK-ANAK | C45: =SUM(tblExpenseCategory_03[jan]) -> 2373 | D45: =SUM(tblExpenseCategory_03[feb]) -> 500 | E45: =SUM(tblExpenseCategory_03[mar]) -> 350 | F45: =SUM(tblExpenseCategory_03[apr]) -> 250 | G45: =SUM(tblExpenseCategory_03[may]) -> 350 | H45: =SUM(tblExpenseCategory_03[jun]) -> 450 | I45: =SUM(tblExpenseCategory_03[jul]) -> 200 | J45: =SUM(tblExpenseCategory_03[aug]) -> 545 | K45: =SUM(tblExpenseCategory_03[sep]) -> 350 | L45: =SUM(tblExpenseCategory_03[oct]) -> 350 | M45: =SUM(tblExpenseCategory_03[nov]) -> 250 | N45: =SUM(tblExpenseCategory_03[dec]) -> 350 | O45: =SUM(tblExpenseCategory_03[year]) -> 6318 | P45: =tblExpenseCategory_03[[#Totals],[year]]/12 -> 527
B48: transportasi
B49: Pembayaran Kendaraan | C49: 600 | D49: 600 | E49: 600 | F49: 600 | G49: 600 | H49: 600 | I49: 600 | J49: 600 | K49: 600 | L49: 600 | M49: 600 | N49: 600 | O49: =SUM(tblExpenseCategory_04[[#This Row],[jan]:[dec]]) -> 7200 | P49: =tblExpenseCategory_04[[#This Row],[year]]/12 -> 600
B50: Bensin | C50: 325 | D50: 325 | E50: 325 | F50: 325 | G50: 325 | H50: 500 | I50: 500 | J50: 500 | K50: 325 | L50: 325 | M50: 325 | N50: 325 | O50: =SUM(tblExpenseCategory_04[[#This Row],[jan]:[dec]]) -> 4425 | P50: =tblExpenseCategory_04[[#This Row],[year]]/12 -> 369
B51: Perbaikan | D51: 100 | F51: 100 | H51: 100 | J51: 100 | L51: 100 | O51: =SUM(tblExpenseCategory_04[[#This Row],[jan]:[dec]]) -> 500 | P51: =tblExpenseCategory_04[[#This Row],[year]]/12 -> 42
B52: Pendaftaran kendaraan/SIM | C52: 185 | K52: 225 | O52: =SUM(tblExpenseCategory_04[[#This Row],[jan]:[dec]]) -> 410 | P52: =tblExpenseCategory_04[[#This Row],[year]]/12 -> 34
B53: Lainnya | G53: 400 | O53: =SUM(tblExpenseCategory_04[[#This Row],[jan]:[dec]]) -> 400 | P53: =tblExpenseCategory_04[[#This Row],[year]]/12 -> 33
B54: =UPPER("Total " & B48) -> TOTAL TRANSPORTASI | C54: =SUM(tblExpenseCategory_04[jan]) -> 1110 | D54: =SUM(tblExpenseCategory_04[feb]) -> 1025 | E54: =SUM(tblExpenseCategory_04[mar]) -> 925 | F54: =SUM(tblExpenseCategory_04[apr]) -> 1025 | G54: =SUM(tblExpenseCategory_04[may]) -> 1325 | H54: =SUM(tblExpenseCategory_04[jun]) -> 1200 | I54: =SUM(tblExpenseCategory_04[jul]) -> 1100 | J54: =SUM(tblExpenseCategory_04[aug]) -> 1200 | K54: =SUM(tblExpenseCategory_04[sep]) -> 1150 | L54: =SUM(tblExpenseCategory_04[oct]) -> 1025 | M54: =SUM(tblExpenseCategory_04[nov]) -> 925 | N54: =SUM(tblExpenseCategory_04[dec]) -> 925 | O54: =SUM(tblExpenseCategory_04[year]) -> 12935 | P54: =tblExpenseCategory_04[[#Totals],[year]]/12 -> 1078
B57: kesehatan
B58: Dokter/Dokter Gigi | D58: 35 | G58: 35 | H58: 35 | I58: 35 | L58: 35 | O58: =SUM(tblExpenseCategory_05[[#This Row],[jan]:[dec]]) -> 175 | P58: =tblExpenseCategory_05[[#This Row],[year]]/12 -> 15
B59: Obat-Obatan | C59: 25 | D59: 25 | E59: 25 | F59: 25 | G59: 25 | H59: 25 | I59: 25 | J59: 25 | K59: 25 | L59: 25 | M59: 25 | N59: 25 | O59: =SUM(tblExpenseCategory_05[[#This Row],[jan]:[dec]]) -> 300 | P59: =tblExpenseCategory_05[[#This Row],[year]]/12 -> 25
B60: Lainnya | E60: 150 | K60: 150 | O60: =SUM(tblExpenseCategory_05[[#This Row],[jan]:[dec]]) -> 300 | P60: =tblExpenseCategory_05[[#This Row],[year]]/12 -> 25
B61: =UPPER("Total " & B57) -> TOTAL KESEHATAN | C61: =SUM(tblExpenseCategory_05[jan]) -> 25 | D61: =SUM(tblExpenseCategory_05[feb]) -> 60 | E61: =SUM(tblExpenseCategory_05[mar]) -> 175 | F61: =SUM(tblExpenseCategory_05[apr]) -> 25 | G61: =SUM(tblExpenseCategory_05[may]) -> 60 | H61: =SUM(tblExpenseCategory_05[jun]) -> 60 | I61: =SUM(tblExpenseCategory_05[jul]) -> 60 | J61: =SUM(tblExpenseCategory_05[aug]) -> 25 | K61: =SUM(tblExpenseCategory_05[sep]) -> 175 | L61: =SUM(tblExpenseCategory_05[oct]) -> 60 | M61: =SUM(tblExpenseCategory_05[nov]) -> 25 | N61: =SUM(tblExpenseCategory_05[dec]) -> 25 | O61: =SUM(tblExpenseCategory_05[year]) -> 775 | P61: =tblExpenseCategory_05[[#Totals],[year]]/12 -> 65
B64: asuransi
B65: Mobil | C65: 150 | D65: 150 | E65: 150 | F65: 150 | G65: 150 | H65: 150 | I65: 150 | J65: 150 | K65: 150 | L65: 150 | M65: 150 | N65: 150 | O65: =SUM(tblExpenseCategory_06[[#This Row],[jan]:[dec]]) -> 1800 | P65: =tblExpenseCategory_06[[#This Row],[year]]/12 -> 150
B66: kesehatan | C66: 675 | D66: 675 | E66: 675 | F66: 675 | G66: 675 | H66: 675 | I66: 675 | J66: 675 | K66: 675 | L66: 675 | M66: 675 | N66: 675 | O66: =SUM(tblExpenseCategory_06[[#This Row],[jan]:[dec]]) -> 8100 | P66: =tblExpenseCategory_06[[#This Row],[year]]/12 -> 675
B67: Jiwa | C67: 150 | D67: 150 | E67: 150 | F67: 150 | G67: 150 | H67: 150 | I67: 150 | J67: 150 | K67: 150 | L67: 150 | M67: 150 | N67: 150 | O67: =SUM(tblExpenseCategory_06[[#This Row],[jan]:[dec]]) -> 1800 | P67: =tblExpenseCategory_06[[#This Row],[year]]/12 -> 150
B68: =UPPER("Total " & B64) -> TOTAL ASURANSI | C68: =SUM(tblExpenseCategory_06[jan]) -> 975 | D68: =SUM(tblExpenseCategory_06[feb]) -> 975 | E68: =SUM(tblExpenseCategory_06[mar]) -> 975 | F68: =SUM(tblExpenseCategory_06[apr]) -> 975 | G68: =SUM(tblExpenseCategory_06[may]) -> 975 | H68: =SUM(tblExpenseCategory_06[jun]) -> 975 | I68: =SUM(tblExpenseCategory_06[jul]) -> 975 | J68: =SUM(tblExpenseCategory_06[aug]) -> 975 | K68: =SUM(tblExpenseCategory_06[sep]) -> 975 | L68: =SUM(tblExpenseCategory_06[oct]) -> 975 | M68: =SUM(tblExpenseCategory_06[nov]) -> 975 | N68: =SUM(tblExpenseCategory_06[dec]) -> 975 | O68: =SUM(tblExpenseCategory_06[year]) -> 11700 | P68: =tblExpenseCategory_06[[#Totals],[year]]/12 -> 975
B71: pendidikan
B72: Uang Sekolah | E72: 400 | K72: 400 | O72: =SUM(tblExpenseCategory_07[[#This Row],[jan]:[dec]]) -> 800 | P72: =tblExpenseCategory_07[[#This Row],[year]]/12 -> 67
B73: Buku | E73: 225 | K73: 225 | O73: =SUM(tblExpenseCategory_07[[#This Row],[jan]:[dec]]) -> 450 | P73: =tblExpenseCategory_07[[#This Row],[year]]/12 -> 38
B74: Lainnya | O74: =SUM(tblExpenseCategory_07[[#This Row],[jan]:[dec]]) -> 0 | P74: =tblExpenseCategory_07[[#This Row],[year]]/12 -> 0
B75: =UPPER("Total " & B71) -> TOTAL PENDIDIKAN | C75: =SUM(tblExpenseCategory_07[jan]) -> 0 | D75: =SUM(tblExpenseCategory_07[feb]) -> 0 | E75: =SUM(tblExpenseCategory_07[mar]) -> 625 | F75: =SUM(tblExpenseCategory_07[apr]) -> 0 | G75: =SUM(tblExpenseCategory_07[may]) -> 0 | H75: =SUM(tblExpenseCategory_07[jun]) -> 0 | I75: =SUM(tblExpenseCategory_07[jul]) -> 0 | J75: =SUM(tblExpenseCategory_07[aug]) -> 0 | K75: =SUM(tblExpenseCategory_07[sep]) -> 625 | L75: =SUM(tblExpenseCategory_07[oct]) -> 0 | M75: =SUM(tblExpenseCategory_07[nov]) -> 0 | N75: =SUM(tblExpenseCategory_07[dec]) -> 0 | O75: =SUM(tblExpenseCategory_07[year]) -> 1250 | P75: =tblExpenseCategory_07[[#Totals],[year]]/12 -> 104
B78: amal
B79: Pemberian Hadiah | D79: 100 | H79: 100 | L79: 100 | O79: =SUM(tblExpenseCategory_08[[#This Row],[jan]:[dec]]) -> 300 | P79: =tblExpenseCategory_08[[#This Row],[year]]/12 -> 25
B80: Sumbangan Amal | E80: 100 | G80: 100 | I80: 100 | K80: 100 | M80: 100 | O80: =SUM(tblExpenseCategory_08[[#This Row],[jan]:[dec]]) -> 500 | P80: =tblExpenseCategory_08[[#This Row],[year]]/12 -> 42
B81: Lainnya | F81: 100 | J81: 100 | N81: 100 | O81: =SUM(tblExpenseCategory_08[[#This Row],[jan]:[dec]]) -> 300 | P81: =tblExpenseCategory_08[[#This Row],[year]]/12 -> 25
B82: =UPPER("Total " & B78) -> TOTAL AMAL | C82: =SUM(tblExpenseCategory_08[jan]) -> 0 | D82: =SUM(tblExpenseCategory_08[feb]) -> 100 | E82: =SUM(tblExpenseCategory_08[mar]) -> 100 | F82: =SUM(tblExpenseCategory_08[apr]) -> 100 | G82: =SUM(tblExpenseCategory_08[may]) -> 100 | H82: =SUM(tblExpenseCategory_08[jun]) -> 100 | I82: =SUM(tblExpenseCategory_08[jul]) -> 100 | J82: =SUM(tblExpenseCategory_08[aug]) -> 100 | K82: =SUM(tblExpenseCategory_08[sep]) -> 100 | L82: =SUM(tblExpenseCategory_08[oct]) -> 100 | M82: =SUM(tblExpenseCategory_08[nov]) -> 100 | N82: =SUM(tblExpenseCategory_08[dec]) -> 100 | O82: =SUM(tblExpenseCategory_08[year]) -> 1100 | P82: =tblExpenseCategory_08[[#Totals],[year]]/12 -> 92
B85: tabungan
B86: Dana Darurat | C86: 100 | D86: 100 | E86: 100 | F86: 100 | G86: 100 | K86: 100 | L86: 100 | M86: 100 | N86: 100 | O86: =SUM(tblExpenseCategory_09[[#This Row],[jan]:[dec]]) -> 900 | P86: =tblExpenseCategory_09[[#This Row],[year]]/12 -> 75
B87: Pensiun (401k, IRA) | C87: 500 | D87: 500 | E87: 500 | F87: 500 | G87: 500 | H87: 500 | I87: 500 | J87: 500 | K87: 500 | L87: 500 | M87: 500 | N87: 500 | O87: =SUM(tblExpenseCategory_09[[#This Row],[jan]:[dec]]) -> 6000 | P87: =tblExpenseCategory_09[[#This Row],[year]]/12 -> 500
B88: Transfer ke Tabungan | C88: 200 | D88: 200 | E88: 200 | F88: 200 | G88: 200 | K88: 200 | L88: 200 | M88: 200 | N88: 200 | O88: =SUM(tblExpenseCategory_09[[#This Row],[jan]:[dec]]) -> 1800 | P88: =tblExpenseCategory_09[[#This Row],[year]]/12 -> 150
B89: =UPPER("Total " & B85) -> TOTAL TABUNGAN | C89: =SUM(tblExpenseCategory_09[jan]) -> 800 | D89: =SUM(tblExpenseCategory_09[feb]) -> 800 | E89: =SUM(tblExpenseCategory_09[mar]) -> 800 | F89: =SUM(tblExpenseCategory_09[apr]) -> 800 | G89: =SUM(tblExpenseCategory_09[may]) -> 800 | H89: =SUM(tblExpenseCategory_09[jun]) -> 500 | I89: =SUM(tblExpenseCategory_09[jul]) -> 500 | J89: =SUM(tblExpenseCategory_09[aug]) -> 500 | K89: =SUM(tblExpenseCategory_09[sep]) -> 800 | L89: =SUM(tblExpenseCategory_09[oct]) -> 800 | M89: =SUM(tblExpenseCategory_09[nov]) -> 800 | N89: =SUM(tblExpenseCategory_09[dec]) -> 800 | O89: =SUM(tblExpenseCategory_09[year]) -> 8700 | P89: =tblExpenseCategory_09[[#Totals],[year]]/12 -> 725
B92: kewajiban
B93: Kartu Kredit #1 | C93: 145 | D93: 145 | E93: 145 | F93: 145 | G93: 145 | H93: 145 | I93: 145 | J93: 145 | K93: 145 | L93: 145 | M93: 145 | N93: 145 | O93: =SUM(tblExpenseCategory_10[[#This Row],[jan]:[dec]]) -> 1740 | P93: =tblExpenseCategory_10[[#This Row],[year]]/12 -> 145
B94: Pajak Negara | C94: 450 | F94: 450 | I94: 450 | L94: 450 | O94: =SUM(tblExpenseCategory_10[[#This Row],[jan]:[dec]]) -> 1800 | P94: =tblExpenseCategory_10[[#This Row],[year]]/12 -> 150
B95: Pinjaman Kuliah | C95: 55 | D95: 55 | E95: 55 | F95: 55 | G95: 55 | H95: 55 | I95: 55 | J95: 55 | K95: 55 | L95: 55 | M95: 55 | N95: 55 | O95: =SUM(tblExpenseCategory_10[[#This Row],[jan]:[dec]]) -> 660 | P95: =tblExpenseCategory_10[[#This Row],[year]]/12 -> 55
B96: =UPPER("Total " & B92) -> TOTAL KEWAJIBAN | C96: =SUM(tblExpenseCategory_10[jan]) -> 650 | D96: =SUM(tblExpenseCategory_10[feb]) -> 200 | E96: =SUM(tblExpenseCategory_10[mar]) -> 200 | F96: =SUM(tblExpenseCategory_10[apr]) -> 650 | G96: =SUM(tblExpenseCategory_10[may]) -> 200 | H96: =SUM(tblExpenseCategory_10[jun]) -> 200 | I96: =SUM(tblExpenseCategory_10[jul]) -> 650 | J96: =SUM(tblExpenseCategory_10[aug]) -> 200 | K96: =SUM(tblExpenseCategory_10[sep]) -> 200 | L96: =SUM(tblExpenseCategory_10[oct]) -> 650 | M96: =SUM(tblExpenseCategory_10[nov]) -> 200 | N96: =SUM(tblExpenseCategory_10[dec]) -> 200 | O96: =SUM(tblExpenseCategory_10[year]) -> 4200 | P96: =tblExpenseCategory_10[[#Totals],[year]]/12 -> 350
O100: =SUM(tblExpenseCategory_11[[#This Row],[jan]:[dec]]) -> 0 | P100: =tblExpenseCategory_11[[#This Row],[year]]/12 -> 0
O101: =SUM(tblExpenseCategory_11[[#This Row],[jan]:[dec]]) -> 0 | P101: =tblExpenseCategory_11[[#This Row],[year]]/12 -> 0
O102: =SUM(tblExpenseCategory_11[[#This Row],[jan]:[dec]]) -> 0 | P102: =tblExpenseCategory_11[[#This Row],[year]]/12 -> 0
B103: =UPPER("Total " & B99) -> TOTAL | C103: =SUM(tblExpenseCategory_11[jan]) -> 0 | D103: =SUM(tblExpenseCategory_11[feb]) -> 0 | E103: =SUM(tblExpenseCategory_11[mar]) -> 0 | F103: =SUM(tblExpenseCategory_11[apr]) -> 0 | G103: =SUM(tblExpenseCategory_11[may]) -> 0 | H103: =SUM(tblExpenseCategory_11[jun]) -> 0 | I103: =SUM(tblExpenseCategory_11[jul]) -> 0 | J103: =SUM(tblExpenseCategory_11[aug]) -> 0 | K103: =SUM(tblExpenseCategory_11[sep]) -> 0 | L103: =SUM(tblExpenseCategory_11[oct]) -> 0 | M103: =SUM(tblExpenseCategory_11[nov]) -> 0 | N103: =SUM(tblExpenseCategory_11[dec]) -> 0 | O103: =SUM(tblExpenseCategory_11[year]) -> 0 | P103: =tblExpenseCategory_11[[#Totals],[year]]/12 -> 0
O107: =SUM(tblExpenseCategory_12[[#This Row],[jan]:[dec]]) -> 0 | P107: =tblExpenseCategory_12[[#This Row],[year]]/12 -> 0
O108: =SUM(tblExpenseCategory_12[[#This Row],[jan]:[dec]]) -> 0 | P108: =tblExpenseCategory_12[[#This Row],[year]]/12 -> 0
O109: =SUM(tblExpenseCategory_12[[#This Row],[jan]:[dec]]) -> 0 | P109: =tblExpenseCategory_12[[#This Row],[year]]/12 -> 0
B110: =UPPER("Total " & B106) -> TOTAL | C110: =SUM(tblExpenseCategory_12[jan]) -> 0 | D110: =SUM(tblExpenseCategory_12[feb]) -> 0 | E110: =SUM(tblExpenseCategory_12[mar]) -> 0 | F110: =SUM(tblExpenseCategory_12[apr]) -> 0 | G110: =SUM(tblExpenseCategory_12[may]) -> 0 | H110: =SUM(tblExpenseCategory_12[jun]) -> 0 | I110: =SUM(tblExpenseCategory_12[jul]) -> 0 | J110: =SUM(tblExpenseCategory_12[aug]) -> 0 | K110: =SUM(tblExpenseCategory_12[sep]) -> 0 | L110: =SUM(tblExpenseCategory_12[oct]) -> 0 | M110: =SUM(tblExpenseCategory_12[nov]) -> 0 | N110: =SUM(tblExpenseCategory_12[dec]) -> 0 | O110: =SUM(tblExpenseCategory_12[year]) -> 0 | P110: =tblExpenseCategory_12[[#Totals],[year]]/12 -> 0
O114: =SUM(tblExpenseCategory_13[[#This Row],[jan]:[dec]]) -> 0 | P114: =tblExpenseCategory_13[[#This Row],[year]]/12 -> 0
O115: =SUM(tblExpenseCategory_13[[#This Row],[jan]:[dec]]) -> 0 | P115: =tblExpenseCategory_13[[#This Row],[year]]/12 -> 0
O116: =SUM(tblExpenseCategory_13[[#This Row],[jan]:[dec]]) -> 0 | P116: =tblExpenseCategory_13[[#This Row],[year]]/12 -> 0
B117: =UPPER("Total " & B113) -> TOTAL | C117: =SUM(tblExpenseCategory_13[jan]) -> 0 | D117: =SUM(tblExpenseCategory_13[feb]) -> 0 | E117: =SUM(tblExpenseCategory_13[mar]) -> 0 | F117: =SUM(tblExpenseCategory_13[apr]) -> 0 | G117: =SUM(tblExpenseCategory_13[may]) -> 0 | H117: =SUM(tblExpenseCategory_13[jun]) -> 0 | I117: =SUM(tblExpenseCategory_13[jul]) -> 0 | J117: =SUM(tblExpenseCategory_13[aug]) -> 0 | K117: =SUM(tblExpenseCategory_13[sep]) -> 0 | L117: =SUM(tblExpenseCategory_13[oct]) -> 0 | M117: =SUM(tblExpenseCategory_13[nov]) -> 0 | N117: =SUM(tblExpenseCategory_13[dec]) -> 0 | O117: =SUM(tblExpenseCategory_13[year]) -> 0 | P117: =tblExpenseCategory_13[[#Totals],[year]]/12 -> 0
O121: =SUM(tblExpenseCategory_14[[#This Row],[jan]:[dec]]) -> 0 | P121: =tblExpenseCategory_14[[#This Row],[year]]/12 -> 0
O122: =SUM(tblExpenseCategory_14[[#This Row],[jan]:[dec]]) -> 0 | P122: =tblExpenseCategory_14[[#This Row],[year]]/12 -> 0
O123: =SUM(tblExpenseCategory_14[[#This Row],[jan]:[dec]]) -> 0 | P123: =tblExpenseCategory_14[[#This Row],[year]]/12 -> 0
B124: =UPPER("Total " & B120) -> TOTAL | C124: =SUM(tblExpenseCategory_14[jan]) -> 0 | D124: =SUM(tblExpenseCategory_14[feb]) -> 0 | E124: =SUM(tblExpenseCategory_14[mar]) -> 0 | F124: =SUM(tblExpenseCategory_14[apr]) -> 0 | G124: =SUM(tblExpenseCategory_14[may]) -> 0 | H124: =SUM(tblExpenseCategory_14[jun]) -> 0 | I124: =SUM(tblExpenseCategory_14[jul]) -> 0 | J124: =SUM(tblExpenseCategory_14[aug]) -> 0 | K124: =SUM(tblExpenseCategory_14[sep]) -> 0 | L124: =SUM(tblExpenseCategory_14[oct]) -> 0 | M124: =SUM(tblExpenseCategory_14[nov]) -> 0 | N124: =SUM(tblExpenseCategory_14[dec]) -> 0 | O124: =SUM(tblExpenseCategory_14[year]) -> 0 | P124: =tblExpenseCategory_14[[#Totals],[year]]/12 -> 0
O128: =SUM(tblExpenseCategory_15[[#This Row],[jan]:[dec]]) -> 0 | P128: =tblExpenseCategory_15[[#This Row],[year]]/12 -> 0
O129: =SUM(tblExpenseCategory_15[[#This Row],[jan]:[dec]]) -> 0 | P129: =tblExpenseCategory_15[[#This Row],[year]]/12 -> 0
O130: =SUM(tblExpenseCategory_15[[#This Row],[jan]:[dec]]) -> 0 | P130: =tblExpenseCategory_15[[#This Row],[year]]/12 -> 0
B131: =UPPER("Total " & B127) -> TOTAL | C131: =SUM(tblExpenseCategory_15[jan]) -> 0 | D131: =SUM(tblExpenseCategory_15[feb]) -> 0 | E131: =SUM(tblExpenseCategory_15[mar]) -> 0 | F131: =SUM(tblExpenseCategory_15[apr]) -> 0 | G131: =SUM(tblExpenseCategory_15[may]) -> 0 | H131: =SUM(tblExpenseCategory_15[jun]) -> 0 | I131: =SUM(tblExpenseCategory_15[jul]) -> 0 | J131: =SUM(tblExpenseCategory_15[aug]) -> 0 | K131: =SUM(tblExpenseCategory_15[sep]) -> 0 | L131: =SUM(tblExpenseCategory_15[oct]) -> 0 | M131: =SUM(tblExpenseCategory_15[nov]) -> 0 | N131: =SUM(tblExpenseCategory_15[dec]) -> 0 | O131: =SUM(tblExpenseCategory_15[year]) -> 0 | P131: =tblExpenseCategory_15[[#Totals],[year]]/12 -> 0

Sheet Penyetelan
B1: KELUARGA JOHNSON 2012
B2: penghasilan | D2: pengeluaran
B3: gaji & tips
B4: pendapatan bunga | D4: rumah | F4: rumah | H4: kehidupan sehari-hari | J4: anak-anak
B5: dividen | D5: kehidupan sehari-hari | F5: hipotek/sewa | H5: bahan makanan | J5: pengobatan
B6: hadiah yang diterima | D6: anak-anak | F6: listrik | H6: perbekalan pribadi | J6: pakaian
B7: pengembalian uang/penggantian | D7: transportasi | F7: gas/minyak | H7: pakaian | J7: uang sekolah
B8: transfer ke tabungan | D8: kesehatan | F8: air/limbah air/sampah | H8: jasa kebersihan | J8: makan siang sekolah
B9: lainnya | D9: asuransi | F9: TELEPON | H9: makan/makan di luar | J9: perbekalan sekolah
D10: pendidikan | F10: tv kabel/satelit | H10: cuci kering | J10: pengasuhan anak
D11: amal | F11: internet | H11: salon/tukang cukur | J11: mainan/permainan
D12: tabungan | F12: perabot/perlengkapan rumah | H12: lainnya | J12: lainnya
D13: kewajiban | F13: halaman/taman
D14: hiburan | F14: perbekalan rumah
D15: binatang peliharaan | F15: pemeliharaan
D16: langganan | F16: perbaikan
D17: liburan | F17: lainnya
D18: lain-lain
F20: transportasi | H20: kesehatan | J20: asuransi
F21: pembayaran kendaraan | H21: dokter/dokter gigi | J21: mobil
F22: bensin | H22: obat-obatan | J22: kesehatan
F23: tiket bus/taksi/kereta | H23: iuran klub kesehatan | J23: rumah/sewa
F24: perbaikan | H24: darurat | J24: jiwa
F25: pendaftaran kendaraan/SIM | H25: lainnya | J25: lainnya
F26: lainnya
F29: pendidikan | H29: amal | J29: tabungan
F30: uang sekolah | H30: pemberian hadiah | J30: dana darurat
F31: buku | H31: sumbangan amal | J31: transfer ke tabungan
F32: pelajaran musik | H32: sumbangan keagamaan | J32: pensiun (401k, ira)
F33: lainnya | H33: lainnya | J33: investasi
J34: kuliah
J35: lainnya
F38: kewajiban | H38: hiburan | J38: binatang peliharaan
F39: pinjaman kuliah | H39: video/dvd | J39: makanan
F40: pinjaman lain | H40: musik | J40: pengobatan
F41: kartu kredit #1 | H41: permainan | J41: mainan/perbekalan
F42: kartu kredit #2 | H42: sewa | J42: lainnya
F43: kartu kredit #3 | H43: film/bioskop
F44: tunjangan cerai/anak | H44: konser/drama
F45: pajak negara | H45: buku
F46: pajak properti | H46: hobi
F47: pajak daerah/lokal | H47: film/foto
F48: iuran rumah | H48: olahraga
F49: biaya hukum | H49: rekreasi luar ruang
F50: lainnya | H50: mainan/gadget
H51: lainnya
F53: langganan | H53: liburan | J53: lain-lain
F54: koran | H54: perjalanan | J54: biaya bank
F55: majalah | H55: penginapan | J55: biaya pos
F56: iuran-iuran | H56: makanan | J56: lainnya
F57: keanggotaan klub | H57: sewa mobil
F58: lainnya | H58: hiburan
H59: lainnya

Sheet data bagan (hidden)
B1: *** Lembar ini harus tetap tersembunyi ***
B4: Periode | C4: 3
C6: jan | D6: feb | E6: mar | F6: apr | G6: mei | H6: jun | I6: jul | J6: agust | K6: sep | L6: okt | M6: nov | N6: des | O6: tahun | P6: Rata-rata
B7: =LOWER(Anggaran!B127) ->  | C7: =SUM(tblExpenseCategory_15[jan]) -> 0 | D7: =SUM(tblExpenseCategory_15[feb]) -> 0 | E7: =SUM(tblExpenseCategory_15[mar]) -> 0 | F7: =SUM(tblExpenseCategory_15[apr]) -> 0 | G7: =SUM(tblExpenseCategory_15[may]) -> 0 | H7: =SUM(tblExpenseCategory_15[jun]) -> 0 | I7: =SUM(tblExpenseCategory_15[jul]) -> 0 | J7: =SUM(tblExpenseCategory_15[aug]) -> 0 | K7: =SUM(tblExpenseCategory_15[sep]) -> 0 | L7: =SUM(tblExpenseCategory_15[oct]) -> 0 | M7: =SUM(tblExpenseCategory_15[nov]) -> 0 | N7: =SUM(tblExpenseCategory_15[dec]) -> 0 | O7: =SUM(tblExpenseCategory_15[year]) -> 0 | P7: =SUM(tblExpenseCategory_15[avg]) -> 0
B8: =LOWER(Anggaran!B120) ->  | C8: =SUM(tblExpenseCategory_14[jan]) -> 0 | D8: =SUM(tblExpenseCategory_14[feb]) -> 0 | E8: =SUM(tblExpenseCategory_14[mar]) -> 0 | F8: =SUM(tblExpenseCategory_14[apr]) -> 0 | G8: =SUM(tblExpenseCategory_14[may]) -> 0 | H8: =SUM(tblExpenseCategory_14[jun]) -> 0 | I8: =SUM(tblExpenseCategory_14[jul]) -> 0 | J8: =SUM(tblExpenseCategory_14[aug]) -> 0 | K8: =SUM(tblExpenseCategory_14[sep]) -> 0 | L8: =SUM(tblExpenseCategory_14[oct]) -> 0 | M8: =SUM(tblExpenseCategory_14[nov]) -> 0 | N8: =SUM(tblExpenseCategory_14[dec]) -> 0 | O8: =SUM(tblExpenseCategory_14[year]) -> 0 | P8: =SUM(tblExpenseCategory_14[avg]) -> 0
B9: =LOWER(Anggaran!B113) ->  | C9: =SUM(tblExpenseCategory_13[jan]) -> 0 | D9: =SUM(tblExpenseCategory_13[feb]) -> 0 | E9: =SUM(tblExpenseCategory_13[mar]) -> 0 | F9: =SUM(tblExpenseCategory_13[apr]) -> 0 | G9: =SUM(tblExpenseCategory_13[may]) -> 0 | H9: =SUM(tblExpenseCategory_13[jun]) -> 0 | I9: =SUM(tblExpenseCategory_13[jul]) -> 0 | J9: =SUM(tblExpenseCategory_13[aug]) -> 0 | K9: =SUM(tblExpenseCategory_13[sep]) -> 0 | L9: =SUM(tblExpenseCategory_13[oct]) -> 0 | M9: =SUM(tblExpenseCategory_13[nov]) -> 0 | N9: =SUM(tblExpenseCategory_13[dec]) -> 0 | O9: =SUM(tblExpenseCategory_13[year]) -> 0 | P9: =SUM(tblExpenseCategory_13[avg]) -> 0
B10: =LOWER(Anggaran!B106) ->  | C10: =SUM(tblExpenseCategory_12[jan]) -> 0 | D10: =SUM(tblExpenseCategory_12[feb]) -> 0 | E10: =SUM(tblExpenseCategory_12[mar]) -> 0 | F10: =SUM(tblExpenseCategory_12[apr]) -> 0 | G10: =SUM(tblExpenseCategory_12[may]) -> 0 | H10: =SUM(tblExpenseCategory_12[jun]) -> 0 | I10: =SUM(tblExpenseCategory_12[jul]) -> 0 | J10: =SUM(tblExpenseCategory_12[aug]) -> 0 | K10: =SUM(tblExpenseCategory_12[sep]) -> 0 | L10: =SUM(tblExpenseCategory_12[oct]) -> 0 | M10: =SUM(tblExpenseCategory_12[nov]) -> 0 | N10: =SUM(tblExpenseCategory_12[dec]) -> 0 | O10: =SUM(tblExpenseCategory_12[year]) -> 0 | P10: =SUM(tblExpenseCategory_12[avg]) -> 0
B11: =LOWER(Anggaran!B99) ->  | C11: =SUM(tblExpenseCategory_11[jan]) -> 0 | D11: =SUM(tblExpenseCategory_11[feb]) -> 0 | E11: =SUM(tblExpenseCategory_11[mar]) -> 0 | F11: =SUM(tblExpenseCategory_11[apr]) -> 0 | G11: =SUM(tblExpenseCategory_11[may]) -> 0 | H11: =SUM(tblExpenseCategory_11[jun]) -> 0 | I11: =SUM(tblExpenseCategory_11[jul]) -> 0 | J11: =SUM(tblExpenseCategory_11[aug]) -> 0 | K11: =SUM(tblExpenseCategory_11[sep]) -> 0 | L11: =SUM(tblExpenseCategory_11[oct]) -> 0 | M11: =SUM(tblExpenseCategory_11[nov]) -> 0 | N11: =SUM(tblExpenseCategory_11[dec]) -> 0 | O11: =SUM(tblExpenseCategory_11[year]) -> 0 | P11: =SUM(tblExpenseCategory_11[avg]) -> 0
B12: =LOWER(Anggaran!B92) -> kewajiban | C12: =SUM(tblExpenseCategory_10[jan]) -> 650 | D12: =SUM(tblExpenseCategory_10[feb]) -> 200 | E12: =SUM(tblExpenseCategory_10[mar]) -> 200 | F12: =SUM(tblExpenseCategory_10[apr]) -> 650 | G12: =SUM(tblExpenseCategory_10[may]) -> 200 | H12: =SUM(tblExpenseCategory_10[jun]) -> 200 | I12: =SUM(tblExpenseCategory_10[jul]) -> 650 | J12: =SUM(tblExpenseCategory_10[aug]) -> 200 | K12: =SUM(tblExpenseCategory_10[sep]) -> 200 | L12: =SUM(tblExpenseCategory_10[oct]) -> 650 | M12: =SUM(tblExpenseCategory_10[nov]) -> 200 | N12: =SUM(tblExpenseCategory_10[dec]) -> 200 | O12: =SUM(tblExpenseCategory_10[year]) -> 4,200 | P12: =SUM(tblExpenseCategory_10[avg]) -> 350
B13: =LOWER(Anggaran!B85) -> tabungan | C13: =SUM(tblExpenseCategory_09[jan]) -> 800 | D13: =SUM(tblExpenseCategory_09[feb]) -> 800 | E13: =SUM(tblExpenseCategory_09[mar]) -> 800 | F13: =SUM(tblExpenseCategory_09[apr]) -> 800 | G13: =SUM(tblExpenseCategory_09[may]) -> 800 | H13: =SUM(tblExpenseCategory_09[jun]) -> 500 | I13: =SUM(tblExpenseCategory_09[jul]) -> 500 | J13: =SUM(tblExpenseCategory_09[aug]) -> 500 | K13: =SUM(tblExpenseCategory_09[sep]) -> 800 | L13: =SUM(tblExpenseCategory_09[oct]) -> 800 | M13: =SUM(tblExpenseCategory_09[nov]) -> 800 | N13: =SUM(tblExpenseCategory_09[dec]) -> 800 | O13: =SUM(tblExpenseCategory_09[year]) -> 8,700 | P13: =SUM(tblExpenseCategory_09[avg]) -> 725
B14: =LOWER(Anggaran!B78) -> amal | C14: =SUM(tblExpenseCategory_08[jan]) -> 0 | D14: =SUM(tblExpenseCategory_08[feb]) -> 100 | E14: =SUM(tblExpenseCategory_08[mar]) -> 100 | F14: =SUM(tblExpenseCategory_08[apr]) -> 100 | G14: =SUM(tblExpenseCategory_08[may]) -> 100 | H14: =SUM(tblExpenseCategory_08[jun]) -> 100 | I14: =SUM(tblExpenseCategory_08[jul]) -> 100 | J14: =SUM(tblExpenseCategory_08[aug]) -> 100 | K14: =SUM(tblExpenseCategory_08[sep]) -> 100 | L14: =SUM(tblExpenseCategory_08[oct]) -> 100 | M14: =SUM(tblExpenseCategory_08[nov]) -> 100 | N14: =SUM(tblExpenseCategory_08[dec]) -> 100 | O14: =SUM(tblExpenseCategory_08[year]) -> 1,100 | P14: =SUM(tblExpenseCategory_08[avg]) -> 92
B15: =LOWER(Anggaran!B71) -> pendidikan | C15: =SUM(tblExpenseCategory_07[jan]) -> 0 | D15: =SUM(tblExpenseCategory_07[feb]) -> 0 | E15: =SUM(tblExpenseCategory_07[mar]) -> 625 | F15: =SUM(tblExpenseCategory_07[apr]) -> 0 | G15: =SUM(tblExpenseCategory_07[may]) -> 0 | H15: =SUM(tblExpenseCategory_07[jun]) -> 0 | I15: =SUM(tblExpenseCategory_07[jul]) -> 0 | J15: =SUM(tblExpenseCategory_07[aug]) -> 0 | K15: =SUM(tblExpenseCategory_07[sep]) -> 625 | L15: =SUM(tblExpenseCategory_07[oct]) -> 0 | M15: =SUM(tblExpenseCategory_07[nov]) -> 0 | N15: =SUM(tblExpenseCategory_07[dec]) -> 0 | O15: =SUM(tblExpenseCategory_07[year]) -> 1,250 | P15: =SUM(tblExpenseCategory_07[avg]) -> 104
B16: =LOWER(Anggaran!B64) -> asuransi | C16: =SUM(tblExpenseCategory_06[jan]) -> 975 | D16: =SUM(tblExpenseCategory_06[feb]) -> 975 | E16: =SUM(tblExpenseCategory_06[mar]) -> 975 | F16: =SUM(tblExpenseCategory_06[apr]) -> 975 | G16: =SUM(tblExpenseCategory_06[may]) -> 975 | H16: =SUM(tblExpenseCategory_06[jun]) -> 975 | I16: =SUM(tblExpenseCategory_06[jul]) -> 975 | J16: =SUM(tblExpenseCategory_06[aug]) -> 975 | K16: =SUM(tblExpenseCategory_06[sep]) -> 975 | L16: =SUM(tblExpenseCategory_06[oct]) -> 975 | M16: =SUM(tblExpenseCategory_06[nov]) -> 975 | N16: =SUM(tblExpenseCategory_06[dec]) -> 975 | O16: =SUM(tblExpenseCategory_06[year]) -> 11,700 | P16: =SUM(tblExpenseCategory_06[avg]) -> 975
B17: =LOWER(Anggaran!B57) -> kesehatan | C17: =SUM(tblExpenseCategory_05[jan]) -> 25 | D17: =SUM(tblExpenseCategory_05[feb]) -> 60 | E17: =SUM(tblExpenseCategory_05[mar]) -> 175 | F17: =SUM(tblExpenseCategory_05[apr]) -> 25 | G17: =SUM(tblExpenseCategory_05[may]) -> 60 | H17: =SUM(tblExpenseCategory_05[jun]) -> 60 | I17: =SUM(tblExpenseCategory_05[jul]) -> 60 | J17: =SUM(tblExpenseCategory_05[aug]) -> 25 | K17: =SUM(tblExpenseCategory_05[sep]) -> 175 | L17: =SUM(tblExpenseCategory_05[oct]) -> 60 | M17: =SUM(tblExpenseCategory_05[nov]) -> 25 | N17: =SUM(tblExpenseCategory_05[dec]) -> 25 | O17: =SUM(tblExpenseCategory_05[year]) -> 775 | P17: =SUM(tblExpenseCategory_05[avg]) -> 65
B18: =LOWER(Anggaran!B48) -> transportasi | C18: =SUM(tblExpenseCategory_04[jan]) -> 1,110 | D18: =SUM(tblExpenseCategory_04[feb]) -> 1,025 | E18: =SUM(tblExpenseCategory_04[mar]) -> 925 | F18: =SUM(tblExpenseCategory_04[apr]) -> 1,025 | G18: =SUM(tblExpenseCategory_04[may]) -> 1,325 | H18: =SUM(tblExpenseCategory_04[jun]) -> 1,200 | I18: =SUM(tblExpenseCategory_04[jul]) -> 1,100 | J18: =SUM(tblExpenseCategory_04[aug]) -> 1,200 | K18: =SUM(tblExpenseCategory_04[sep]) -> 1,150 | L18: =SUM(tblExpenseCategory_04[oct]) -> 1,025 | M18: =SUM(tblExpenseCategory_04[nov]) -> 925 | N18: =SUM(tblExpenseCategory_04[dec]) -> 925 | O18: =SUM(tblExpenseCategory_04[year]) -> 12,935 | P18: =SUM(tblExpenseCategory_04[avg]) -> 1,078
B19: =LOWER(Anggaran!B39) -> anak-anak | C19: =SUM(tblExpenseCategory_03[jan]) -> 2,373 | D19: =SUM(tblExpenseCategory_03[feb]) -> 500 | E19: =SUM(tblExpenseCategory_03[mar]) -> 350 | F19: =SUM(tblExpenseCategory_03[apr]) -> 250 | G19: =SUM(tblExpenseCategory_03[may]) -> 350 | H19: =SUM(tblExpenseCategory_03[jun]) -> 450 | I19: =SUM(tblExpenseCategory_03[jul]) -> 200 | J19: =SUM(tblExpenseCategory_03[aug]) -> 545 | K19: =SUM(tblExpenseCategory_03[sep]) -> 350 | L19: =SUM(tblExpenseCategory_03[oct]) -> 350 | M19: =SUM(tblExpenseCategory_03[nov]) -> 250 | N19: =SUM(tblExpenseCategory_03[dec]) -> 350 | O19: =SUM(tblExpenseCategory_03[year]) -> 6,318 | P19: =SUM(tblExpenseCategory_03[avg]) -> 527
B20: =LOWER(Anggaran!B30) -> kehidupan sehari-hari | C20: =SUM(tblExpenseCategory_02[jan]) -> 795 | D20: =SUM(tblExpenseCategory_02[feb]) -> 375 | E20: =SUM(tblExpenseCategory_02[mar]) -> 550 | F20: =SUM(tblExpenseCategory_02[apr]) -> 825 | G20: =SUM(tblExpenseCategory_02[may]) -> 500 | H20: =SUM(tblExpenseCategory_02[jun]) -> 450 | I20: =SUM(tblExpenseCategory_02[jul]) -> 875 | J20: =SUM(tblExpenseCategory_02[aug]) -> 475 | K20: =SUM(tblExpenseCategory_02[sep]) -> 400 | L20: =SUM(tblExpenseCategory_02[oct]) -> 825 | M20: =SUM(tblExpenseCategory_02[nov]) -> 575 | N20: =SUM(tblExpenseCategory_02[dec]) -> 375 | O20: =SUM(tblExpenseCategory_02[year]) -> 7,020 | P20: =SUM(tblExpenseCategory_02[avg]) -> 585
B21: =LOWER(Anggaran!B21) -> rumah | C21: =SUM(tblExpenseCategory_01[jan]) -> 1,208 | D21: =SUM(tblExpenseCategory_01[feb]) -> 1,208 | E21: =SUM(tblExpenseCategory_01[mar]) -> 1,233 | F21: =SUM(tblExpenseCategory_01[apr]) -> 1,208 | G21: =SUM(tblExpenseCategory_01[may]) -> 1,158 | H21: =SUM(tblExpenseCategory_01[jun]) -> 1,183 | I21: =SUM(tblExpenseCategory_01[jul]) -> 1,283 | J21: =SUM(tblExpenseCategory_01[aug]) -> 1,333 | K21: =SUM(tblExpenseCategory_01[sep]) -> 1,208 | L21: =SUM(tblExpenseCategory_01[oct]) -> 1,158 | M21: =SUM(tblExpenseCategory_01[nov]) -> 1,208 | N21: =SUM(tblExpenseCategory_01[dec]) -> 1,208 | O21: =SUM(tblExpenseCategory_01[year]) -> 14,596 | P21: =SUM(tblExpenseCategory_01[avg]) -> 1,216
B26: Arus Kas Kumulatif | C26: =SUM(Anggaran!$C$8:C$8) -> -3,714 | D26: =SUM(Anggaran!$C$8:D$8) -> 76 | E26: =SUM(Anggaran!$C$8:E$8) -> -1,857 | F26: =SUM(Anggaran!$C$8:F$8) -> -3,670 | G26: =SUM(Anggaran!$C$8:G$8) -> -138 | H26: =SUM(Anggaran!$C$8:H$8) -> -3,731 | I26: =SUM(Anggaran!$C$8:I$8) -> -7,974 | J26: =SUM(Anggaran!$C$8:J$8) -> -6,827 | K26: =SUM(Anggaran!$C$8:K$8) -> -8,810 | L26: =SUM(Anggaran!$C$8:L$8) -> -10,753 | M26: =SUM(Anggaran!$C$8:M$8) -> -6,811 | N26: =SUM(Anggaran!$C$8:N$8) -> -7,769 | O26: =SUM(Anggaran!$C$8:O$8) -> -15,538
B28: Tahun Arus Kas Positif | C28: =IF(Anggaran!C$8<0,NA(),IF(period+2<>COLUMN(Anggaran!C$8),NA(),Anggaran!C$8)) ->  | D28: =IF(Anggaran!D$8<0,NA(),IF(period+2<>COLUMN(Anggaran!D$8),NA(),Anggaran!D$8)) ->  | E28: =IF(Anggaran!E$8<0,NA(),IF(period+2<>COLUMN(Anggaran!E$8),NA(),Anggaran!E$8)) ->  | F28: =IF(Anggaran!F$8<0,NA(),IF(period+2<>COLUMN(Anggaran!F$8),NA(),Anggaran!F$8)) ->  | G28: =IF(Anggaran!G$8<0,NA(),IF(period+2<>COLUMN(Anggaran!G$8),NA(),Anggaran!G$8)) ->  | H28: =IF(Anggaran!H$8<0,NA(),IF(period+2<>COLUMN(Anggaran!H$8),NA(),Anggaran!H$8)) ->  | I28: =IF(Anggaran!I$8<0,NA(),IF(period+2<>COLUMN(Anggaran!I$8),NA(),Anggaran!I$8)) ->  | J28: =IF(Anggaran!J$8<0,NA(),IF(period+2<>COLUMN(Anggaran!J$8),NA(),Anggaran!J$8)) ->  | K28: =IF(Anggaran!K$8<0,NA(),IF(period+2<>COLUMN(Anggaran!K$8),NA(),Anggaran!K$8)) ->  | L28: =IF(Anggaran!L$8<0,NA(),IF(period+2<>COLUMN(Anggaran!L$8),NA(),Anggaran!L$8)) ->  | M28: =IF(Anggaran!M$8<0,NA(),IF(period+2<>COLUMN(Anggaran!M$8),NA(),Anggaran!M$8)) ->  | N28: =IF(Anggaran!N$8<0,NA(),IF(period+2<>COLUMN(Anggaran!N$8),NA(),Anggaran!N$8)) ->  | O28: =IF(Anggaran!O$8<0,NA(),IF(period+2<>COLUMN(Anggaran!O$8),NA(),Anggaran!O$8)) -> 
B29: Tahun Arus Kas Negatif | C29: =IF(Anggaran!C$8>=0,NA(),IF(period+2<>COLUMN(Anggaran!C$8),NA(),Anggaran!C$8)) ->  | D29: =IF(Anggaran!D$8>=0,NA(),IF(period+2<>COLUMN(Anggaran!D$8),NA(),Anggaran!D$8)) ->  | E29: =IF(Anggaran!E$8>=0,NA(),IF(period+2<>COLUMN(Anggaran!E$8),NA(),Anggaran!E$8)) -> -1,933 | F29: =IF(Anggaran!F$8>=0,NA(),IF(period+2<>COLUMN(Anggaran!F$8),NA(),Anggaran!F$8)) ->  | G29: =IF(Anggaran!G$8>=0,NA(),IF(period+2<>COLUMN(Anggaran!G$8),NA(),Anggaran!G$8)) ->  | H29: =IF(Anggaran!H$8>=0,NA(),IF(period+2<>COLUMN(Anggaran!H$8),NA(),Anggaran!H$8)) ->  | I29: =IF(Anggaran!I$8>=0,NA(),IF(period+2<>COLUMN(Anggaran!I$8),NA(),Anggaran!I$8)) ->  | J29: =IF(Anggaran!J$8>=0,NA(),IF(period+2<>COLUMN(Anggaran!J$8),NA(),Anggaran!J$8)) ->  | K29: =IF(Anggaran!K$8>=0,NA(),IF(period+2<>COLUMN(Anggaran!K$8),NA(),Anggaran!K$8)) ->  | L29: =IF(Anggaran!L$8>=0,NA(),IF(period+2<>COLUMN(Anggaran!L$8),NA(),Anggaran!L$8)) ->  | M29: =IF(Anggaran!M$8>=0,NA(),IF(period+2<>COLUMN(Anggaran!M$8),NA(),Anggaran!M$8)) ->  | N29: =IF(Anggaran!N$8>=0,NA(),IF(period+2<>COLUMN(Anggaran!N$8),NA(),Anggaran!N$8)) ->  | O29: =IF(Anggaran!O$8>=0,NA(),IF(period+2<>COLUMN(Anggaran!O$8),NA(),Anggaran!O$8)) -> 
B37: =LOWER(display_long_period) -> maret
B38: =display_long_period & " Penghasilan" -> Maret Penghasilan | C38: =INDEX(Anggaran!$C$6:$P$6,,period) -> Rp4,000
B39: =display_long_period & " Pengeluaran: " & TEXT(INDEX(Anggaran!$C$7:$P$7,,period),"$#,##0") -> Maret Pengeluaran: $5933,0 | C39: =INDEX(Anggaran!$C$7:$P$7,,period) -> Rp5,933
B40: =display_long_period & " Alur Kas" -> Maret Alur Kas | C40: =ABS(INDEX(Anggaran!$C$8:$P$8,,period)) -> Rp1,933 | D40: =REPT("-",INDEX(Anggaran!$C$8:$P$8,,period)<0) -> -
